fUST/lending_fUST_20250827
["ID","MTS","AMOUNT","RATE_DAILY","PERIOD"]
[381532439,1756265447473,-505.26674269,0.00025273,2]
[381532440,1756265447482,-500.0,0.00025273,2]
[381532441,1756265447493,-500.0,0.00025273,2]
[381532442,1756265447502,-500.0,0.00025273,2]
[381532443,1756265447512,-500.0,0.00025273,2]
[381532444,1756265447522,-500.0,0.00025273,2]
[381532445,1756265447533,-500.0,0.00025273,2]
[381532446,1756265447543,-500.0,0.00025273,2]
[381532447,1756265447553,-500.0,0.00025273,2]
[381532448,1756265447563,-500.0,0.00025273,2]
[381532449,1756265447573,-500.0,0.00025273,2]
[381532450,1756265447734,-500.0,0.00025273,2]
[381532451,1756265447745,-165.3498966,0.00025273,2]
[381532452,1756265447754,-500.0,0.00025273,2]
[381532453,1756265447763,-151.0,0.00025275,2]
[381532454,1756265447772,-500.0,0.00025275,2]
[381532455,1756265447782,-151.0,0.00025275,2]
[381532456,1756265447791,-152.12703067,0.00025275,2]
[381532457,1756265447801,-151.0,0.00025275,2]
[381532458,1756265447810,-500.0,0.00025275,2]
[381532459,1756265447819,-151.0,0.00025275,2]
[381532460,1756265447829,-500.0,0.00025275,2]
[381532461,1756265447838,-151.0,0.00025275,2]
[381532462,1756265447847,-500.0,0.00025275,2]
[381532463,1756265447857,-151.0,0.00025275,2]
[381532464,1756265447866,-500.0,0.00025275,2]
[381532465,1756265447876,-152.76273238,0.00025275,2]
[381532466,1756265447885,-544.44515153,0.00025275,2]
[381532467,1756265447894,-151.0,0.00025275,2]
[381532468,1756265447904,-300.0,0.00025275,2]
[381532469,1756265447913,-151.0,0.00025275,2]
[381532470,1756265447922,-300.0,0.00025275,2]
[381532471,1756265447931,-151.0,0.00025275,2]
[381532472,1756265447940,-151.0,0.00025275,2]
[381532473,1756265447950,-300.0,0.00025275,2]
[381532474,1756265447959,-151.0,0.00025275,2]
[381532475,1756265447969,-151.0,0.00025275,2]
[381532476,1756265447978,-300.0,0.00025275,2]
[381532477,1756265447988,-300.0,0.00025275,2]
[381532478,1756265447997,-151.0,0.00025275,2]
[381532479,1756265448007,-151.0,0.00025275,2]
[381532480,1756265448016,-300.0,0.00025275,2]
[381532481,1756265448025,-254.39428097,0.00025275,2]
[381532482,1756265448035,-300.0,0.00025275,2]
[381532483,1756265448044,-151.0,0.00025275,2]
[381532484,1756265448053,-300.0,0.00025275,2]
[381532485,1756265448063,-300.0,0.00025275,2]
[381532486,1756265448072,-151.0,0.00025275,2]
[381532487,1756265448081,-151.0,0.00025275,2]
[381532488,1756265448090,-300.0,0.00025275,2]
[381532489,1756265448099,-300.0,0.00025275,2]
[381532490,1756265448109,-201.93286099,0.00025275,2]
[381532491,1756265448118,-151.0,0.00025275,2]
[381532492,1756265448127,-300.0,0.00025275,2]
[381532493,1756265448137,-151.0,0.00025275,2]
[381532494,1756265448146,-300.0,0.00025275,2]
[381532495,1756265448156,-151.0,0.00025275,2]
[381532496,1756265448166,-151.0,0.00025275,2]
[381532497,1756265448176,-300.0,0.00025275,2]
[381532498,1756265448185,-300.0,0.00025275,2]
[381532499,1756265448195,-151.0,0.00025275,2]
[381532500,1756265448205,-151.0,0.00025275,2]
[381532501,1756265448214,-300.0,0.00025275,2]
[381532502,1756265448224,-151.0,0.00025275,2]
[381532503,1756265448234,-300.0,0.00025275,2]
[381532504,1756265448245,-300.0,0.00025275,2]
[381532505,1756265448255,-151.0,0.00025275,2]
[381532506,1756265448265,-300.0,0.00025275,2]
[381532507,1756265448275,-151.0,0.00025275,2]
[381532508,1756265448284,-151.0,0.00025275,2]
[381532509,1756265448293,-225.36683765,0.00025275,2]
[381532510,1756265448303,-300.0,0.00025275,2]
[381532511,1756265448313,-151.0,0.00025275,2]
[381532512,1756265448323,-151.0,0.00025275,2]
[381532513,1756265448333,-151.0,0.00025275,2]
[381532514,1756265448342,-500.0,0.00025275,2]
[381532515,1756265448351,-300.0,0.00025275,2]
[381532516,1756265448361,-500.0,0.00025275,2]
[381532517,1756265448370,-151.961905,0.00025275,2]
[381532518,1756265448380,-500.0,0.00025275,2]
[381532519,1756265448390,-500.0,0.00025275,2]
[381532520,1756265448400,-1000.0,0.00025275,2]
[381532521,1756265448410,-500.0,0.00025275,2]
[381532522,1756265448419,-1000.0,0.00025275,2]
[381532523,1756265448430,-500.0,0.00025275,2]
[381532524,1756265448440,-1000.0,0.00025275,2]
[381532525,1756265448450,-500.0,0.00025275,2]
[381532526,1756265448460,-1000.0,0.00025275,2]
[381532527,1756265448470,-500.0,0.00025275,2]
[381532528,1756265448480,-1000.0,0.00025275,2]
[381532529,1756265448490,-500.0,0.00025275,2]
[381532530,1756265448499,-1000.0,0.00025275,2]
[381532531,1756265448509,-500.0,0.00025275,2]
[381532532,1756265448519,-1000.0,0.00025275,2]
[381532533,1756265448529,-500.0,0.00025275,2]
[381532534,1756265448542,-1000.0,0.00025275,2]
[381532535,1756265448551,-151.0,0.00025275,2]
[381532536,1756265448562,-500.0,0.00025275,2]
[381532537,1756265448572,-1000.0,0.00025275,2]
[381532538,1756265448583,-151.0,0.00025275,2]
[381532539,1756265448592,-1000.0,0.00025275,2]
[381532540,1756265448601,-151.0,0.00025275,2]
[381532541,1756265448615,-1000.0,0.00025275,2]
[381532542,1756265448626,-151.0,0.00025275,2]
[381532543,1756265448635,-151.0,0.00025275,2]
[381532544,1756265448644,-1000.0,0.00025275,2]
[381532545,1756265448654,-151.0,0.00025275,2]
[381532546,1756265448663,-1000.0,0.00025275,2]
[381532547,1756265448672,-151.0,0.00025275,2]
[381532548,1756265448681,-1000.0,0.00025275,2]
[381532549,1756265448691,-151.0,0.00025275,2]
[381532550,1756265448700,-1000.0,0.00025275,2]
[381532551,1756265448709,-151.0,0.00025275,2]
[381532552,1756265448719,-1000.0,0.00025275,2]
[381532553,1756265448728,-4666.27450806,0.00025276,2]
[381532554,1756265448739,-601.3348811,0.00025291,2]
[381532555,1756265448749,-151.0,0.000253,19]
[381532556,1756265448758,-151.0,0.000253,18]
[381532557,1756265448767,-309.1512373,0.000253,2]
[381532558,1756265448777,-155.9993982,0.000253,2]
[381532559,1756265448786,-404.9277606,0.000253,2]
[381532560,1756265448796,-326.5756925,0.000253,2]
[381532561,1756265448805,-303.0493787,0.000253,2]
[381532562,1756265448815,-1193.4793795,0.000253,2]
[381532563,1756265448824,-154.3049667,0.000253,2]
[381532564,1756265448834,-581.2274076,0.000253,2]
[381532565,1756265448843,-161.1421334,0.000253,2]
[381532566,1756265448853,-306.0,0.000253,2]
[381532567,1756265448864,-387.4630707,0.000253,2]
[381532568,1756265448873,-153.0,0.000253,2]
[381532569,1756265448882,-161.1421334,0.000253,2]
[381532570,1756265448892,-153.0,0.000253,2]
[381532571,1756265448901,-387.4630707,0.000253,2]
[381532572,1756265448911,-7137.5,0.000253,7]
[381532573,1756265448921,-82245.77,0.000253,7]
[381532574,1756265448931,-161.1421334,0.000253,2]
[381532575,1756265448940,-153.0,0.000253,2]
[381532576,1756265448949,-161.1421334,0.000253,2]
[381532577,1756265448959,-2715.12328229,0.00025301,2]
[381532578,1756265448968,-328.49,0.00025303,2]
[381532579,1756265448977,-151.0,0.00025303,7]
[381532580,1756265448987,-353.0,0.00025311,2]
[381532581,1756265448997,-500.0,0.00025335,2]
[381532582,1756265449007,-1841.9754623,0.00025338,2]
[381532583,1756265449016,-2815.58284374,0.00025356,2]
[381532584,1756265449025,-500.0,0.00025373,2]
[381532585,1756265449035,-565.6651766,0.00025373,2]
[381532586,1756265449044,-500.0,0.00025373,2]
[381532587,1756265449053,-504.78680679,0.00025373,2]
[381532588,1756265449063,-151.0,0.000254,19]
[381532589,1756265449072,-2589.17336383,0.00025411,2]
[381532590,1756265449081,-17773.83685375,0.00025429,2]
[381532591,1756265449091,-12563.5462878,0.00025431,2]
[381532592,1756265449100,-1902.02,0.00025447,2]
[381532593,1756265449110,-1902.02,0.00025447,2]
[381532594,1756265449121,-1902.02,0.00025447,2]
[381532595,1756265449130,-1902.02,0.00025447,2]
[381532596,1756265449139,-1902.02,0.00025447,2]
[381532597,1756265449149,-1902.02,0.00025447,2]
[381532598,1756265449158,-4666.27450806,0.00025451,2]
[381532599,1756265449167,-1902.02,0.00025456,2]
[381532600,1756265449176,-1902.02,0.00025456,2]
[381532601,1756265449185,-1902.02,0.00025456,2]
[381532602,1756265449195,-1902.02,0.00025456,2]
[381532603,1756265449204,-1902.02,0.00025457,2]
[381532604,1756265449213,-1902.02,0.00025457,2]
[381532605,1756265449223,-1902.02,0.00025457,2]
[381532606,1756265449232,-500.0,0.00025473,2]
[381532607,1756265449243,-500.0,0.00025473,2]
[381532608,1756265449253,-502.05494152,0.00025473,2]
[381532609,1756265449263,-500.0,0.00025473,2]
[381532610,1756265449274,-501.7996209,0.00025473,2]
[381532611,1756265449286,-864.0,0.00025474,2]
[381532612,1756265449297,-151.0,0.00025475,7]
[381532613,1756265449308,-500.0,0.00025475,7]
[381532614,1756265449318,-151.0,0.00025475,7]
[381532615,1756265449329,-501.3005907,0.00025475,7]
[381532616,1756265449339,-151.0,0.00025475,7]
[381532617,1756265449350,-151.0,0.00025475,7]
[381532618,1756265449360,-151.7628848,0.00025475,7]
[381532619,1756265449370,-500.0,0.00025475,7]
[381532620,1756265449379,-548.11064043,0.00025475,7]
[381532621,1756265449389,-151.0,0.00025475,7]
[381532622,1756265449399,-151.0,0.00025475,7]
[381532623,1756265449409,-151.0,0.00025475,7]
[381532624,1756265449418,-151.0,0.00025475,7]
[381532625,1756265449428,-199.32256392,0.00025475,7]
[381532626,1756265449439,-151.0,0.00025475,7]
[381532627,1756265449448,-500.0,0.00025475,7]
[381532628,1756265449458,-151.0,0.00025475,7]
[381532629,1756265449468,-151.0,0.00025475,7]
[381532630,1756265449477,-151.0,0.00025475,7]
[381532631,1756265449487,-212.55999886,0.00025475,7]
[381532632,1756265449498,-151.0,0.00025475,7]
[381532633,1756265449507,-199.24537975,0.00025475,7]
[381532634,1756265449517,-151.0,0.00025475,2]
[381532635,1756265449527,-151.0,0.00025475,2]
[381532636,1756265449540,-527.26544843,0.00025475,7]
[381532637,1756265449550,-500.0,0.00025475,7]
[381532638,1756265449559,-169.76726833,0.00025475,7]
[381532639,1756265449569,-151.0,0.000255,12]
[381532640,1756265449578,-453.0,0.00025524,2]
[381532641,1756265449588,-959.87095487,0.00025531,2]
[381532642,1756265449603,-1902.02,0.00025572,2]
[381532643,1756265449616,-1902.02,0.00025574,2]
[381532644,1756265449625,-1902.02,0.00025574,2]
[381532645,1756265449634,-1902.02,0.00025583,2]
[381532646,1756265449643,-1902.02,0.00025584,2]
[381532647,1756265449652,-151.0,0.000256,15]
[381532648,1756265449661,-151.0,0.000256,11]
[381532649,1756265449671,-500.0,0.00025609,2]
[381532650,1756265449680,-4666.27450806,0.00025625,2]
[381532651,1756265449689,-1902.02,0.00025674,2]
[381532652,1756265449698,-1902.02,0.00025674,2]
[381532653,1756265449707,-1902.02,0.00025674,2]
[381532654,1756265449717,-1902.02,0.00025674,2]
[381532655,1756265449726,-1902.02,0.00025674,2]
[381532656,1756265449735,-1902.03113303,0.00025674,2]
[381532657,1756265449746,-151.0,0.000257,10]
[381532658,1756265449755,-1000.0,0.00025721,2]
[381532659,1756265449764,-1002.52419901,0.00025721,2]
[381532660,1756265449773,-1000.0,0.00025721,2]
[381532661,1756265449783,-957.59490614,0.00025721,2]
[381532662,1756265449792,-1000.0,0.00025721,2]
[381532663,1756265449803,-1000.0,0.00025721,2]
[381532664,1756265449812,-1000.0,0.00025721,2]
[381532665,1756265449822,-1000.0,0.00025721,2]
[381532666,1756265449835,-1000.0,0.00025721,2]
[381532667,1756265449855,-168.0,0.00025722,2]
[381532668,1756265449871,-864.0,0.00025748,2]
[381532669,1756265449880,-151.0,0.00025749,7]
[381532670,1756265449889,-350.00464221,0.00025749,7]
[381532671,1756265449898,-151.0,0.00025749,7]
[381532672,1756265449907,-151.0,0.00025749,7]
[381532673,1756265449916,-151.0,0.00025749,7]
[381532674,1756265449925,-351.55704012,0.00025749,7]
[381532675,1756265449934,-251.9344424,0.00025749,7]
[381532676,1756265449943,-151.0,0.00025749,7]
[381532677,1756265449952,-151.0,0.00025749,7]
[381532678,1756265449961,-151.0,0.00025749,7]
[381532679,1756265449971,-151.0,0.00025749,7]
[381532680,1756265449980,-161.33279216,0.00025749,7]
[381532681,1756265449990,-151.0,0.00025749,7]
[381532682,1756265450000,-151.0,0.00025749,7]
[381532683,1756265450009,-152.69064147,0.00025749,7]
[381532684,1756265450019,-151.0,0.00025749,7]
[381532685,1756265450028,-151.0,0.00025749,2]
[381532686,1756265450037,-206.96205957,0.00025749,2]
[381532687,1756265450047,-262.85450736,0.00025749,7]
[381532688,1756265450056,-168.0,0.00025752,2]
[381532689,1756265450066,-168.0,0.000258,2]
[381532690,1756265450075,-151.0,0.000258,12]
[381532691,1756265450231,-151.0,0.000258,15]
[381532692,1756265450241,-151.0,0.000258,10]
[381532693,1756265450250,-151.0,0.000258,16]
[381532694,1756265450259,-173.9886523,0.000258,2]
[381532695,1756265450269,-4666.27450806,0.000258,2]
[381532696,1756265450279,-12563.5462878,0.000258,2]
[381532697,1756265450288,-191.0,0.00025803,2]
[381532698,1756265450297,-168.0,0.00025806,2]
[381532699,1756265450306,-509.48151517,0.00025821,2]
[381532700,1756265450316,-501.90256974,0.00025821,2]
[381532701,1756265450325,-1000.0,0.00025821,2]
[381532702,1756265450335,-502.70267797,0.00025821,2]
[381532703,1756265450344,-1000.0,0.00025821,2]
[381532704,1756265450353,-893.6560695,0.00025821,2]
[381532705,1756265450363,-1000.0,0.00025821,2]
[381532706,1756265450372,-1000.0,0.00025821,2]
[381532707,1756265450382,-1053.88994924,0.00025821,2]
[381532708,1756265450391,-1000.0,0.00025821,2]
[381532709,1756265450401,-1002.35240638,0.00025821,2]
[381532710,1756265450410,-501.54918979,0.00025821,2]
[381532711,1756265450419,-611.79117715,0.00025821,2]
[381532712,1756265450429,-1000.0,0.00025821,2]
[381532713,1756265450438,-1000.0,0.00025821,2]
[381532714,1756265450451,-1000.0,0.00025821,2]
[381532715,1756265450472,-1000.0,0.00025821,2]
[381532716,1756265450481,-197.38868026,0.00025821,2]
[381532717,1756265450491,-1000.0,0.00025821,2]
[381532718,1756265450501,-1000.0,0.00025821,2]
[381532719,1756265450511,-1000.0,0.00025821,2]
[381532720,1756265450521,-1000.0,0.00025821,2]
[381532721,1756265450533,-1000.0,0.00025821,2]
[381532722,1756265450544,-1000.0,0.00025821,2]
[381532723,1756265450553,-1004.68612931,0.00025821,2]
[381532724,1756265450562,-1000.0,0.00025821,2]
[381532725,1756265450573,-1000.0,0.00025821,2]
[381532726,1756265450583,-193.0,0.00025824,7]
[381532727,1756265450593,-500.0,0.00025873,2]
[381532728,1756265450602,-500.0,0.00025873,2]
[381532729,1756265450614,-500.0,0.00025873,2]
[381532730,1756265450624,-502.95282658,0.00025873,2]
[381532731,1756265450633,-501.34941827,0.00025873,2]
[381532732,1756265450642,-501.88207925,0.00025873,2]
[381532733,1756265450651,-500.0,0.00025873,2]
[381532734,1756265450661,-500.0,0.00025873,2]
[381532735,1756265450670,-502.16102371,0.00025873,2]
[381532736,1756265450680,-150.0,0.00025873,2]
[381532737,1756265450689,-500.0,0.00025873,2]
[381532738,1756265450698,-501.28330005,0.00025873,2]
[381532739,1756265450708,-529.88765004,0.00025873,2]
[381532740,1756265450717,-500.0,0.00025873,2]
[381532741,1756265450726,-499.45917636,0.00025873,2]
[381532742,1756265450735,-500.0,0.00025873,2]
[381532743,1756265450748,-500.0,0.00025873,2]
[381532744,1756265450758,-500.0,0.00025873,2]
[381532745,1756265450767,-500.0,0.00025873,2]
[381532746,1756265450776,-500.0,0.00025873,2]
[381532747,1756265450786,-649.3956744,0.00025873,2]
[381532748,1756265450795,-150.92245155,0.00025873,2]
[381532749,1756265450807,-500.0,0.00025873,2]
[381532750,1756265450816,-500.0,0.00025873,2]
[381532751,1756265450826,-500.0,0.00025883,2]
[381532752,1756265450835,-191.0,0.00025884,2]
[381532753,1756265450845,-160.0,0.0002589,2]
[381532754,1756265450854,-151.0,0.000259,15]
[381532755,1756265450864,-151.0,0.000259,13]
[381532756,1756265450874,-151.0,0.000259,15]
[381532757,1756265450883,-2038444.67,0.000259,2]
[381532758,1756265450893,-168.0,0.00025906,7]
[381532759,1756265450903,-193.0,0.00025909,2]
[381532760,1756265450912,-504.14361721,0.00025921,2]
[381532761,1756265450921,-1000.0,0.00025921,2]
[381532762,1756265450931,-168.0,0.00025926,7]
[381532763,1756265450940,-7504.1048691,0.00025947,2]
[381532764,1756265450949,-160.0,0.0002597,2]
[381532765,1756265450958,-6802.002763,0.0002597,2]
[381532766,1756265450967,-861.81604143,0.00025972,2]
[381532767,1756265450977,-794.67216847,0.00025972,2]
[381532768,1756265450987,-664.28669922,0.00025972,2]
[381532769,1756265450998,-500.0,0.00025973,2]
[381532770,1756265451007,-500.0,0.00025973,2]
[381532771,1756265451017,-500.0,0.00025973,2]
[381532772,1756265451026,-500.31743883,0.00025973,2]
[381532773,1756265451036,-500.0,0.00025973,2]
[381532774,1756265451046,-150.0,0.00025973,2]
[381532775,1756265451055,-150.0,0.00025973,2]
[381532776,1756265451064,-100000.0,0.0002599,2]
[381532777,1756265451075,-151.0,0.00026,13]
[381532778,1756265451084,-151.0,0.00026,19]
[381532779,1756265451094,-151.0,0.00026,14]
[381532780,1756265451103,-43583.58629804,0.00026,30]
[381532781,1756265451113,-160.0,0.00026,30]
[381532782,1756265451123,-217.23771399,0.00026,30]
[381532783,1756265451132,-160.0,0.00026,30]
[381532784,1756265451142,-588.93873768,0.00026021,2]
[381532785,1756265451151,-501.66026849,0.00026021,2]
[381532786,1756265451161,-501.56192813,0.00026021,2]
[381532787,1756265451171,-864.0,0.00026022,2]
[381532788,1756265451180,-246.47729355,0.00026023,7]
[381532789,1756265451189,-151.0,0.00026023,7]
[381532790,1756265451199,-151.0,0.00026023,7]
[381532791,1756265451208,-154.97535819,0.00026023,7]
[381532792,1756265451217,-151.0,0.00026023,7]
[381532793,1756265451227,-295.19506388,0.00026023,7]
[381532794,1756265451236,-151.93706704,0.00026023,7]
[381532795,1756265451247,-199.41390406,0.00026023,7]
[381532796,1756265451256,-248.56546402,0.00026023,7]
[381532797,1756265451266,-200.92893483,0.00026023,7]
[381532798,1756265451275,-151.0,0.00026023,7]
[381532799,1756265451284,-211.23630374,0.00026023,2]
[381532800,1756265451305,-394.16535683,0.00026039,2]
[381532801,1756265451314,-500.0,0.00026073,2]
[381532802,1756265451324,-500.0,0.00026073,2]
[381532803,1756265451333,-500.0,0.00026073,2]
[381532804,1756265451343,-160.40370053,0.00026073,2]
[381532805,1756265451352,-150.0,0.00026073,2]
[381532806,1756265451362,-517594.97754682,0.00026098,2]
[381532807,1756265451371,-301.297764,0.000261,2]
[381532808,1756265451380,-1724.589409,0.000261,2]
[381532809,1756265451389,-168.0,0.00026116,2]
[381532810,1756265451398,-500.0,0.00026157,2]
[381532811,1756265451408,-191.0,0.00026167,7]
[381532812,1756265451417,-168.0,0.00026202,2]
[381532813,1756265451427,-168.0,0.00026265,2]
[381532814,1756265451436,-504.14781193,0.00026268,2]
[381532815,1756265451445,-1014.09166701,0.00026268,2]
[381532816,1756265451454,-935.67679133,0.00026268,2]
[381532817,1756265451463,-1500.0,0.00026268,2]
[381532818,1756265451472,-1500.0,0.00026268,2]
[381532819,1756265451481,-1500.0,0.00026268,2]
[381532820,1756265451492,-1500.0,0.00026268,2]
[381532821,1756265451502,-864.0,0.00026296,2]
[381532822,1756265451511,-152.70876926,0.00026297,7]
[381532823,1756265451520,-248.6153923,0.00026297,7]
[381532824,1756265451530,-151.0,0.00026297,7]
[381532825,1756265451543,-230.93347901,0.00026297,7]
[381532826,1756265451552,-168.0,0.00026345,2]
[381532827,1756265451561,-22588.54569781,0.00026362,2]
[381532828,1756265451571,-168.0,0.00026364,2]
[381532829,1756265451585,-168.0,0.00026368,2]
[381532830,1756265451596,-1500.0,0.00026368,2]
[381532831,1756265451610,-501.52291206,0.00026368,2]
[381532832,1756265451619,-1500.0,0.00026368,2]
[381532833,1756265451628,-1511.33233376,0.00026368,2]
[381532834,1756265451637,-1500.0,0.00026368,2]
[381532835,1756265451646,-1361.49580924,0.00026368,2]
[381532836,1756265451655,-1500.0,0.00026368,2]
[381532837,1756265451665,-1508.32274485,0.00026368,2]
[381532838,1756265451675,-1642.34281078,0.00026368,2]
[381532839,1756265451684,-1500.0,0.00026368,2]
[381532840,1756265451692,-1500.0,0.00026368,2]
[381532841,1756265451702,-1009.409048,0.00026368,2]
[381532842,1756265451711,-1007.98425217,0.00026368,2]
[381532843,1756265451720,-1500.0,0.00026368,2]
[381532844,1756265451729,-1500.0,0.00026368,2]
[381532845,1756265451738,-1500.0,0.00026368,2]
[381532846,1756265451748,-1500.0,0.00026368,2]
[381532847,1756265451757,-160.0,0.00026405,3]
[381532848,1756265451766,-1000.0,0.00026421,2]
[381532849,1756265451775,-1012.61145131,0.00026421,2]
[381532850,1756265451785,-1000.0,0.00026421,2]
[381532851,1756265451794,-1000.0,0.00026421,2]
[381532852,1756265451803,-500.40698923,0.00026421,2]
[381532853,1756265451813,-352.02431384,0.00026421,2]
[381532854,1756265451823,-510.59179472,0.00026421,2]
[381532855,1756265451831,-501.3444035,0.00026421,2]
[381532856,1756265451841,-1000.0,0.00026421,2]
[381532857,1756265451850,-714.4432057,0.00026421,2]
[381532858,1756265451859,-1001.2701077,0.00026421,2]
[381532859,1756265451868,-1000.0,0.00026421,2]
[381532860,1756265451877,-1000.0,0.00026421,2]
[381532861,1756265451886,-1000.0,0.00026421,2]
[381532862,1756265451895,-1002.46213118,0.00026421,2]
[381532863,1756265451905,-500.0,0.00026431,2]
[381532864,1756265451914,-260.0,0.00026438,2]
[381532865,1756265451923,-10248.24,0.0002645,3]
[381532866,1756265451932,-5124.12,0.0002645,3]
[381532867,1756265451942,-2562.06,0.0002645,3]
[381532868,1756265451951,-1281.02,0.0002645,3]
[381532869,1756265451960,-256.98082411,0.00026468,2]
[381532870,1756265451970,-168.0,0.00026472,2]
[381532871,1756265451979,-191.0,0.00026474,2]
[381532872,1756265451988,-13617.87,0.000265,2]
[381532873,1756265451999,-216.14835892,0.000265,3]
[381532874,1756265452008,-160.0,0.000265,3]
[381532875,1756265452018,-529.56067766,0.000265,3]
[381532876,1756265452027,-417.15472785,0.000265,3]
[381532877,1756265452037,-425.44119842,0.000265,3]
[381532878,1756265452046,-160.0,0.000265,3]
[381532879,1756265452055,-160.0,0.000265,3]
[381532880,1756265452065,-217.23771399,0.000265,3]
[381532881,1756265452074,-503.96849117,0.00026521,2]
[381532882,1756265452083,-1000.0,0.00026521,2]
[381532883,1756265452092,-1000.0,0.00026521,2]
[381532884,1756265452101,-1000.0,0.00026521,2]
[381532885,1756265452110,-300.0,0.00026521,2]
[381532886,1756265452119,-250.0,0.00026521,2]
[381532887,1756265452128,-2071.13,0.00026544,2]
[381532888,1756265452138,-191.0,0.00026568,2]
[381532889,1756265452147,-864.0,0.0002657,2]
[381532890,1756265452156,-196.06127645,0.00026571,7]
[381532891,1756265452165,-7137.5,0.000266,7]
[381532892,1756265452175,-82245.77,0.000266,7]
[381532893,1756265452184,-1000.0,0.000266,2]
[381532894,1756265452193,-160.0,0.000266,3]
[381532895,1756265452202,-160.0,0.000266,3]
[381532896,1756265452211,-232.59867797,0.000266,3]
[381532897,1756265452220,-191.515142,0.000266,2]
[381532898,1756265452229,-160.0,0.000266,3]
[381532899,1756265452238,-1000.0,0.00026621,2]
[381532900,1756265452248,-1000.0,0.00026621,2]
[381532901,1756265452260,-205.858871,0.00026621,2]
[381532902,1756265452270,-252.03074768,0.00026621,2]
[381532903,1756265452279,-3480.58596968,0.00026639,5]
[381532904,1756265452288,-209.40437684,0.00026644,2]
[381532905,1756265452298,-168.0,0.00026665,2]
[381532906,1756265452307,-649.812447,0.00026676,2]
[381532907,1756265452317,-301.297764,0.00026689,2]
[381532908,1756265452326,-500.0,0.00026705,2]
[381532909,1756265452335,-3178.68867386,0.0002676,2]
[381532910,1756265452344,-309.0,0.000268,2]
[381532911,1756265452354,-301.297764,0.00026806,6]
[381532912,1756265452503,-2426.94751175,0.00026806,6]
[381532913,1756265452514,-1965.51803516,0.00026816,2]
[381532914,1756265452524,-2000.0,0.00026816,2]
[381532915,1756265452536,-2000.0,0.00026816,2]
[381532916,1756265452546,-2000.0,0.00026816,2]
[381532917,1756265452555,-864.0,0.00026844,2]
[381532918,1756265452566,-168.0,0.00026853,2]
[381532919,1756265452576,-1576.66142732,0.00026859,2]
[381532920,1756265452586,-168.0,0.00026877,2]
[381532921,1756265452595,-1005.47448285,0.00026916,2]
[381532922,1756265452604,-474.470482,0.00026916,2]
[381532923,1756265452614,-507.17363693,0.00026916,2]
[381532924,1756265452624,-505.76236737,0.00026916,2]
[381532925,1756265452633,-180.11276111,0.00026916,2]
[381532926,1756265452643,-508.16533693,0.00026916,2]
[381532927,1756265452652,-1555.72121144,0.00026916,2]
[381532928,1756265452661,-2000.0,0.00026916,2]
[381532929,1756265452670,-2000.0,0.00026916,2]
[381532930,1756265452679,-847.35570464,0.00026916,2]
[381532931,1756265452689,-160.0,0.00026963,2]
[381532932,1756265452698,-1500.0,0.00026968,2]
[381532933,1756265452708,-1500.0,0.00026968,2]
[381532934,1756265452717,-1500.0,0.00026968,2]
[381532935,1756265452726,-664.1333832,0.00026968,2]
[381532936,1756265452736,-1500.0,0.00026968,2]
[381532937,1756265452746,-1500.0,0.00026968,2]
[381532938,1756265452755,-1008.2933097,0.00026968,2]